Workbook

Sheet Cal FD yield from FD interest
A1: Fixed Deposit Annualized Yield Calculator | D1: Month | E1: Annualized | K1: =IF(term="Quarterly",4,IF(term="Half-yearly",2,IF(term="Yearly",1,IF(term="Monthly",12)))) -> 1 | L1: 1
A2: Investment tenure in months and years | E2: Yield | K2: =IF(term="Quarterly",3,IF(term="Half-yearly",6,IF(term="Yearly",12,IF(term="Monthly",1)))) -> 12 | L2: 2 | V2: =100*(1+8.5%)^10 -> 226.0983442
L3: =L2+1 -> 3
A4: Fill only the cells with green background | D4: =IF(D3<rdura,D3+1,"") -> 1 | E4: =IF(D4="","", ((1+raterd/factor1)^(factor1*D4/12)-1)/(D4/12)) -> 0.07953560165 | F4: =IF(D4="","", raterd) -> 0.0825 | L4: =L3+1 -> 4
A5: Interest Rate (constant!) | B5: 0.0825 | D5: 2 | E5: 0.07979918132 | F5: 0.0825 | L5: 5
A6: Investment | B6: 1212 | D6: 3 | E6: 0.08006392564 | F6: 0.0825 | L6: 6 | M6: Quarterly | V6: =(V2-100)/100 -> 1.260983442
A7: Duration of invest. (months)* | B7: 120 | D7: 4 | E7: 0.08032984043 | F7: 0.0825 | L7: 7 | M7: Half-yearly
A8: * 2 - 120 months (max. allowed duration) | D8: 5 | E8: 0.08059693149 | F8: 0.0825 | L8: 8 | M8: Yearly
A9: Type of Compounding | B9: Yearly | D9: 6 | E9: 0.08086520467 | F9: 0.0825 | L9: 9 | M9: Monthly
A10: Pre-tax Corpus | B10: =fdamt*(1+raterd/factor1)^(factor1*rdura/12) -> 2677.821783 | D10: 7 | E10: 0.08113466586 | F10: 0.0825 | L10: 10
D11: 8 | E11: 0.08140532097 | F11: 0.0825 | L11: 11
A12: Annualized Yield | B12: =((1+raterd/factor1)^(factor1*rdura/12)-1)/(rdura/12) -> 0.1209423914 | D12: 9 | E12: 0.08167717595 | F12: 0.0825 | L12: 12
D13: 10 | E13: 0.08195023677 | F13: 0.0825 | L13: 13 | V13: =((1+8.5%)^(1/12)-1)/(1/12) -> 0.08185792039
A14: Feedback welcome: pattu@iitm.ac.in | D14: 11 | E14: 0.08222450944 | F14: 0.0825 | L14: 14
D15: 12 | E15: 0.0825 | F15: 0.0825 | L15: 15 | V15: =((1+raterd)^(3)-1)/3 -> 0.08949342188
A16: Enter only months. | D16: 13 | E16: 0.08277671452 | F16: 0.0825 | L16: 16
A17: Use this to convert! | D17: 14 | E17: 0.08305465911 | F17: 0.0825 | L17: 17
A18: Years | B18: 6 | D18: 15 | E18: 0.0833338399 | F18: 0.0825 | G18: The maximumvalue of this graph corresponds to the advertised annualized yield
A19: Months | B19: =12*B18 -> 72 | D19: 16 | E19: 0.08361426307 | F19: 0.0825 | G19: The horizontal red line is the constant rate of interest | J19: =IF(#REF!="","",#REF!+#REF!+#REF!) ->  | L19: 1 | O19: of interest
D20: 17 | E20: 0.0838959348 | F20: 0.0825 | J20: =IF(#REF!="","",J19+#REF!+#REF!) ->  | L20: 2
D21: 18 | E21: 0.08417886135 | F21: 0.0825 | J21: =IF(#REF!="","",J20+#REF!+#REF!) ->  | L21: 3
A22: =factor1 -> 1 | D22: 19 | E22: 0.08446304898 | F22: 0.0825 | J22: =IF(#REF!="","",J21+#REF!+#REF!) ->  | L22: 4
D23: 20 | E23: 0.08474850398 | F23: 0.0825 | J23: =IF(#REF!="","",J22+#REF!+#REF!) ->  | L23: 5
D24: 21 | E24: 0.0850352327 | F24: 0.0825 | J24: =IF(#REF!="","",J23+#REF!+#REF!) ->  | L24: 6
D25: 22 | E25: 0.0853232415 | F25: 0.0825 | J25: =IF(#REF!="","",J24+#REF!+#REF!) ->  | L25: 7
D26: 23 | E26: 0.08561253679 | F26: 0.0825 | J26: =IF(#REF!="","",J25+#REF!+#REF!) ->  | L26: 8
D27: 24 | E27: 0.085903125 | F27: 0.0825 | J27: =IF(#REF!="","",J26+#REF!+#REF!) ->  | L27: 9
D28: 25 | E28: 0.0861950126 | F28: 0.0825 | J28: =IF(#REF!="","",J27+#REF!+#REF!) ->  | L28: 10
D29: 26 | E29: 0.08648820611 | F29: 0.0825 | J29: =IF(#REF!="","",J28+#REF!+#REF!) ->  | L29: 11
D30: 27 | E30: 0.08678271205 | F30: 0.0825 | J30: =IF(#REF!="","",J29+#REF!+#REF!) ->  | L30: 12
D31: 28 | E31: 0.08707853701 | F31: 0.0825 | J31: =IF(#REF!="","",J30+#REF!+#REF!) ->  | L31: 13
D32: 29 | E32: 0.08737568759 | F32: 0.0825 | J32: =IF(#REF!="","",J31+#REF!+#REF!) ->  | L32: 14
D33: 30 | E33: 0.08767417045 | F33: 0.0825 | J33: =IF(#REF!="","",J32+#REF!+#REF!) ->  | L33: 15
D34: 31 | E34: 0.08797399225 | F34: 0.0825 | J34: =IF(#REF!="","",J33+#REF!+#REF!) ->  | L34: 16
D35: 32 | E35: 0.08827515972 | F35: 0.0825 | J35: =IF(#REF!="","",J34+#REF!+#REF!) ->  | L35: 17
D36: =IF(D35<rdura,D35+1,"") -> 33 | E36: =IF(D36="","", ((1+raterd/factor1)^(factor1*D36/12)-1)/(D36/12)) -> 0.08857767962 | F36: =IF(D36="","", raterd) -> 0.0825 | L36: 18
D37: 34 | E37: 0.08888155872 | F37: 0.0825 | L37: 19
D38: 35 | E38: 0.08918680385 | F38: 0.0825 | L38: 20
D39: 36 | E39: 0.08949342188 | F39: 0.0825 | L39: 21
D40: 37 | E40: 0.08980141969 | F40: 0.0825 | L40: 22
D41: 38 | E41: 0.09011080423 | F41: 0.0825 | L41: 23
D42: 39 | E42: 0.09042158247 | F42: 0.0825 | L42: 24
D43: 40 | E43: 0.09073376142 | F43: 0.0825 | L43: 25
D44: 41 | E44: 0.09104734812 | F44: 0.0825 | L44: 26
D45: 42 | E45: 0.09136234965 | F45: 0.0825 | L45: 27
D46: 43 | E46: 0.09167877314 | F46: 0.0825 | L46: 28
D47: 44 | E47: 0.09199662575 | F47: 0.0825 | L47: 29
D48: 45 | E48: 0.09231591467 | F48: 0.0825 | L48: 30
D49: 46 | E49: 0.09263664714 | F49: 0.0825 | L49: 31
D50: 47 | E50: 0.09295883044 | F50: 0.0825 | L50: 32
D51: 48 | E51: 0.09328247188 | F51: 0.0825 | L51: 33
D52: 49 | E52: 0.09360757882 | F52: 0.0825 | L52: 34
D53: 50 | E53: 0.09393415864 | F53: 0.0825 | L53: 35
D54: 51 | E54: 0.09426221879 | F54: 0.0825 | L54: 36
D55: 52 | E55: 0.09459176672 | F55: 0.0825 | L55: 37
D56: 53 | E56: 0.09492280996 | F56: 0.0825 | L56: 38
D57: 54 | E57: 0.09525535605 | F57: 0.0825 | L57: 39
D58: 55 | E58: 0.09558941259 | F58: 0.0825 | L58: 40
D59: 56 | E59: 0.09592498722 | F59: 0.0825 | L59: 41
D60: 57 | E60: 0.0962620876 | F60: 0.0825 | L60: 42
D61: 58 | E61: 0.09660072146 | F61: 0.0825 | L61: 43
D62: 59 | E62: 0.09694089654 | F62: 0.0825 | L62: 44
D63: 60 | E63: 0.09728262065 | F63: 0.0825 | L63: 45
D64: 61 | E64: 0.09762590163 | F64: 0.0825 | L64: 46
D65: 62 | E65: 0.09797074736 | F65: 0.0825 | L65: 47
D66: 63 | E66: 0.09831716577 | F66: 0.0825 | L66: 48
D67: 64 | E67: 0.09866516482 | F67: 0.0825 | L67: 49
D68: =IF(D67<rdura,D67+1,"") -> 65 | E68: =IF(D68="","", ((1+raterd/factor1)^(factor1*D68/12)-1)/(D68/12)) -> 0.09901475253 | F68: =IF(D68="","", raterd) -> 0.0825 | L68: =L67+1 -> 50
D69: 66 | E69: 0.09936593694 | F69: 0.0825 | L69: 51
D70: 67 | E70: 0.09971872615 | F70: 0.0825 | L70: 52
D71: 68 | E71: 0.1000731283 | F71: 0.0825 | L71: 53
D72: 69 | E72: 0.1004291516 | F72: 0.0825 | L72: 54
D73: 70 | E73: 0.1007868042 | F73: 0.0825 | L73: 55
D74: 71 | E74: 0.1011460945 | F74: 0.0825 | L74: 56
D75: 72 | E75: 0.1015070307 | F75: 0.0825 | L75: 57
D76: 73 | E76: 0.1018696212 | F76: 0.0825 | L76: 58
D77: 74 | E77: 0.1022338745 | F77: 0.0825 | L77: 59
D78: 75 | E78: 0.1025997988 | F78: 0.0825 | L78: 60
D79: 76 | E79: 0.1029674029 | F79: 0.0825 | L79: 61
D80: 77 | E80: 0.1033366951 | F80: 0.0825 | L80: 62
D81: 78 | E81: 0.1037076842 | F81: 0.0825 | L81: 63
D82: 79 | E82: 0.1040803786 | F82: 0.0825 | L82: 64
D83: 80 | E83: 0.1044547872 | F83: 0.0825 | L83: 65
D84: 81 | E84: 0.1048309186 | F84: 0.0825 | L84: 66
D85: 82 | E85: 0.1052087816 | F85: 0.0825 | L85: 67
D86: 83 | E86: 0.105588385 | F86: 0.0825 | L86: 68
D87: 84 | E87: 0.1059697378 | F87: 0.0825 | L87: 69
D88: 85 | E88: 0.1063528487 | F88: 0.0825 | L88: 70
D89: 86 | E89: 0.1067377269 | F89: 0.0825 | L89: 71
D90: 87 | E90: 0.1071243812 | F90: 0.0825 | L90: 72
D91: 88 | E91: 0.1075128209 | F91: 0.0825 | L91: 73
D92: 89 | E92: 0.1079030548 | F92: 0.0825 | L92: 74
D93: 90 | E93: 0.1082950924 | F93: 0.0825 | L93: 75
D94: 91 | E94: 0.1086889426 | F94: 0.0825 | L94: 76
D95: 92 | E95: 0.1090846149 | F95: 0.0825 | L95: 77
D96: 93 | E96: 0.1094821185 | F96: 0.0825 | L96: 78
D97: 94 | E97: 0.1098814628 | F97: 0.0825 | L97: 79
D98: 95 | E98: 0.1102826571 | F98: 0.0825 | L98: 80
D99: 96 | E99: 0.110685711 | F99: 0.0825 | L99: 81
D100: =IF(D99<rdura,D99+1,"") -> 97 | E100: =IF(D100="","", ((1+raterd/factor1)^(factor1*D100/12)-1)/(D100/12)) -> 0.111090634 | F100: =IF(D100="","", raterd) -> 0.0825 | L100: 82
D101: 98 | E101: 0.1114974356 | F101: 0.0825 | L101: 83
D102: 99 | E102: 0.1119061254 | F102: 0.0825 | L102: 84
D103: 100 | E103: 0.1123167131 | F103: 0.0825 | L103: 85
D104: 101 | E104: 0.1127292085 | F104: 0.0825 | L104: 86
D105: 102 | E105: 0.1131436213 | F105: 0.0825 | L105: 87
D106: 103 | E106: 0.1135599613 | F106: 0.0825 | L106: 88
D107: 104 | E107: 0.1139782384 | F107: 0.0825 | L107: 89
D108: 105 | E108: 0.1143984626 | F108: 0.0825 | L108: 90
D109: 106 | E109: 0.1148206438 | F109: 0.0825 | L109: 91
D110: 107 | E110: 0.1152447921 | F110: 0.0825 | L110: 92
D111: 108 | E111: 0.1156709175 | F111: 0.0825 | L111: 93
D112: 109 | E112: 0.1160990302 | F112: 0.0825 | L112: 94
D113: 110 | E113: 0.1165291405 | F113: 0.0825 | L113: 95
D114: 111 | E114: 0.1169612585 | F114: 0.0825 | L114: 96
D115: 112 | E115: 0.1173953946 | F115: 0.0825 | L115: 97
D116: 113 | E116: 0.1178315592 | F116: 0.0825 | L116: 98
D117: 114 | E117: 0.1182697627 | F117: 0.0825 | L117: 99
D118: 115 | E118: 0.1187100155 | F118: 0.0825 | L118: 100
D119: 116 | E119: 0.1191523283 | F119: 0.0825 | L119: 101
D120: 117 | E120: 0.1195967116 | F120: 0.0825 | L120: 102
D121: 118 | E121: 0.120043176 | F121: 0.0825 | L121: 103
D122: 119 | E122: 0.1204917324 | F122: 0.0825 | L122: 104
D123: 120 | E123: 0.1209423914 | F123: 0.0825 | L123: 105
L124: 106
L125: 107
L126: 108
L127: 109
L128: 110
L129: 111
L130: 112
L131: 113
L132: =L131+1 -> 114
L133: 115
L134: 116
L135: 117
L136: 118
L137: 119
L138: 120

Sheet Cal FD rate from FD yield
A1: Calculate interest rate from FD yield | D1: Month | E1: Annualized | F1: Annual | K1: =IF(term="Quarterly",4,IF(term="Half-yearly",2,IF(term="Yearly",1,IF(term="Monthly",12)))) -> 4 | L1: 1
A2: Investment tenure in months and years | E2: Yield | F2: interest rate | K2: =IF(term="Quarterly",3,IF(term="Half-yearly",6,IF(term="Yearly",12,IF(term="Monthly",1)))) -> 3 | L2: 2
L3: =L2+1 -> 3
A4: Fill only the cells with green background | D4: =IF(D3<rdura,D3+1,"") -> 1 | E4: =IF(D4="","", ((1+raterd/factor1)^(factor1*D4/12)-1)/(D4/12)) -> 0.09434791646 | F4: =IF(D4="","", raterd) -> 0.09509165465 | L4: =L3+1 -> 4
A5: Annualized Yield (as advertised) | B5: 0.10381 | D5: 2 | E5: 0.09471881352 | F5: 0.09509165465 | L5: 5
A6: Investment | B6: 100 | D6: 3 | E6: 0.09509165465 | F6: 0.09509165465 | L6: 6 | M6: Quarterly
A7: Duration of invest. (months)* | B7: 25 | D7: 4 | E7: 0.09546645132 | F7: 0.09509165465 | L7: 7 | M7: Half-yearly
A8: * 2 - 120 months (max. allowed duration) | D8: 5 | E8: 0.09584321507 | F8: 0.09509165465 | L8: 8 | M8: Yearly
A9: Type of Compounding | B9: Quarterly | D9: 6 | E9: 0.0962219575 | F9: 0.09509165465 | L9: 9 | M9: Monthly
A10: Annual interest rate (constant!) | B10: =(((B5*(rdura/12))+1)^(1/(factor1*rdura/12))-1)*factor1 -> 0.09509165465 | D10: 7 | E10: 0.0966026903 | F10: 0.09509165465 | L10: 10
A11: Pre-tax Corpus | B11: =fdamt*(1+raterd/factor1)^(factor1*rdura/12) -> 121.6270833 | D11: 8 | E11: 0.09698542521 | F11: 0.09509165465 | L11: 11
D12: 9 | E12: 0.09737017408 | F12: 0.09509165465 | L12: 12
D13: 10 | E13: 0.09775694879 | F13: 0.09509165465 | L13: 13
A14: Feedback welcome: pattu@iitm.ac.in | D14: 11 | E14: 0.09814576134 | F14: 0.09509165465 | L14: 14
D15: 12 | E15: 0.09853662378 | F15: 0.09509165465 | L15: 15
A16: Enter only months. | D16: 13 | E16: 0.09892954823 | F16: 0.09509165465 | L16: 16
A17: Use this to convert! | D17: 14 | E17: 0.0993245469 | F17: 0.09509165465 | L17: 17
A18: Years | B18: 6 | D18: 15 | E18: 0.09972163207 | F18: 0.09509165465
A19: Months | B19: =12*B18 -> 72 | D19: 16 | E19: 0.1001208161 | F19: 0.09509165465 | J19: =IF(#REF!="","",#REF!+#REF!+#REF!) ->  | L19: 1
D20: 17 | E20: 0.1005221115 | F20: 0.09509165465 | J20: =IF(#REF!="","",J19+#REF!+#REF!) ->  | L20: 2
D21: 18 | E21: 0.1009255306 | F21: 0.09509165465 | J21: =IF(#REF!="","",J20+#REF!+#REF!) ->  | L21: 3
D22: 19 | E22: 0.1013310862 | F22: 0.09509165465 | J22: =IF(#REF!="","",J21+#REF!+#REF!) ->  | L22: 4
D23: 20 | E23: 0.1017387909 | F23: 0.09509165465 | J23: =IF(#REF!="","",J22+#REF!+#REF!) ->  | L23: 5
D24: 21 | E24: 0.1021486574 | F24: 0.09509165465 | J24: =IF(#REF!="","",J23+#REF!+#REF!) ->  | L24: 6
D25: 22 | E25: 0.1025606986 | F25: 0.09509165465 | J25: =IF(#REF!="","",J24+#REF!+#REF!) ->  | L25: 7
D26: 23 | E26: 0.1029749275 | F26: 0.09509165465 | J26: =IF(#REF!="","",J25+#REF!+#REF!) ->  | L26: 8
D27: 24 | E27: 0.1033913569 | F27: 0.09509165465 | J27: =IF(#REF!="","",J26+#REF!+#REF!) ->  | L27: 9
D28: 25 | E28: 0.10381 | F28: 0.09509165465 | J28: =IF(#REF!="","",J27+#REF!+#REF!) ->  | L28: 10
J29: =IF(#REF!="","",J28+#REF!+#REF!) ->  | L29: 11
J30: =IF(#REF!="","",J29+#REF!+#REF!) ->  | L30: 12
J31: =IF(#REF!="","",J30+#REF!+#REF!) ->  | L31: 13
J32: =IF(#REF!="","",J31+#REF!+#REF!) ->  | L32: 14
J33: =IF(#REF!="","",J32+#REF!+#REF!) ->  | L33: 15
J34: =IF(#REF!="","",J33+#REF!+#REF!) ->  | L34: 16
J35: =IF(#REF!="","",J34+#REF!+#REF!) ->  | L35: 17
D36: =IF(D35<rdura,D35+1,"") ->  | E36: =IF(D36="","", ((1+raterd/factor1)^(factor1*D36/12)-1)/(D36/12)) ->  | F36: =IF(D36="","", raterd) ->  | L36: 18
L37: 19
L38: 20
L39: 21
L40: 22
L41: 23
L42: 24
L43: 25
L44: 26
L45: 27
L46: 28
L47: 29
L48: 30
L49: 31
L50: 32
L51: 33
L52: 34
L53: 35
L54: 36
L55: 37
L56: 38
L57: 39
L58: 40
L59: 41
L60: 42
L61: 43
L62: 44
L63: 45
L64: 46
L65: 47
L66: 48
L67: 49
D68: =IF(D67<rdura,D67+1,"") ->  | E68: =IF(D68="","", ((1+raterd/factor1)^(factor1*D68/12)-1)/(D68/12)) ->  | F68: =IF(D68="","", raterd) ->  | L68: =L67+1 -> 50
L69: 51
L70: 52
L71: 53
L72: 54
L73: 55
L74: 56
L75: 57
L76: 58
L77: 59
L78: 60
L79: 61
L80: 62
L81: 63
L82: 64
L83: 65
L84: 66
L85: 67
L86: 68
L87: 69
L88: 70
L89: 71
L90: 72
L91: 73
L92: 74
L93: 75
L94: 76
L95: 77
L96: 78
L97: 79
L98: 80
L99: 81
D100: =IF(D99<rdura,D99+1,"") ->  | E100: =IF(D100="","", ((1+raterd/factor1)^(factor1*D100/12)-1)/(D100/12)) ->  | F100: =IF(D100="","", raterd) ->  | L100: 82
L101: 83
L102: 84
L103: 85
L104: 86
L105: 87
L106: 88
L107: 89
L108: 90
L109: 91
L110: 92
L111: 93
L112: 94
L113: 95
L114: 96
L115: 97
L116: 98
L117: 99
L118: 100
L119: 101
L120: 102
L121: 103
L122: 104
L123: 105
L124: 106
L125: 107
L126: 108
L127: 109
L128: 110
L129: 111
L130: 112
L131: 113
L132: =L131+1 -> 114
L133: 115
L134: 116
L135: 117
L136: 118
L137: 119
L138: 120
